[Event "Titled Tuesday Blitz July 18 Early 2023"]
[White "Liu, Casper"]
[Black "Okike, David"]
[WhiteFideId "1454153"]
[BlackFideId "8500134"]
[WhiteElo "2465"]
[BlackElo "2330"]
[Result "0-1"]
[Round "6"]
[TimeControl "180+2"]
[Date "2023.07.18"]
[WhiteClock "0:00:43"]
[BlackClock "0:00:31"]
[Board "138"]

1. e4 {[%clk 0:03:00]}  c5 {[%clk 0:02:59]} 2. d4 {[%clk 0:03:01]}  cxd4 {[%clk 0:02:58]} 3. Qxd4 {[%clk 0:03:02]}  Nc6 {[%clk 0:02:58]} 4. Qe3 {[%clk 0:03:02]}  Nf6 {[%clk 0:02:55]} 5. Nc3 {[%clk 0:03:02]}  d6 {[%clk 0:02:53]} 6. Bd2 {[%clk 0:03:02]}  Ng4 {[%clk 0:02:45]} 7. Qg3 {[%clk 0:03:01]}  Qb6 {[%clk 0:02:45]} 8. Nd5 {[%clk 0:02:38]}  Qxb2 {[%clk 0:02:38]} 9. Bc3 {[%clk 0:02:34]}  Qxc2 {[%clk 0:02:28]} 10. Bd3 {[%clk 0:02:31]}  Qxf2+ {[%clk 0:02:15]} 11. Qxf2 {[%clk 0:02:30]}  Nxf2 {[%clk 0:02:16]} 12. Kxf2 {[%clk 0:02:31]}  Rb8 {[%clk 0:02:16]} 13. a4 {[%clk 0:02:25]}  e6 {[%clk 0:02:16]} 14. Nc7+ {[%clk 0:02:19]}  Kd7 {[%clk 0:02:16]} 15. Nb5 {[%clk 0:02:19]}  a6 {[%clk 0:02:16]} 16. Nd4 {[%clk 0:02:19]}  Ne5 {[%clk 0:02:16]} 17. Be2 {[%clk 0:02:17]}  Be7 {[%clk 0:02:16]} 18. Ngf3 {[%clk 0:02:17]}  Ng4+ {[%clk 0:02:12]} 19. Kg3 {[%clk 0:02:15]}  h5 {[%clk 0:02:09]} 20. Rab1 {[%clk 0:02:15]}  b6 {[%clk 0:02:06]} 21. h3 {[%clk 0:02:10]}  Ne5 {[%clk 0:02:03]} 22. Nxe5+ {[%clk 0:02:09]}  dxe5 {[%clk 0:02:03]} 23. Nf3 {[%clk 0:02:09]}  f6 {[%clk 0:02:03]} 24. Rhd1+ {[%clk 0:02:09]}  Ke8 {[%clk 0:02:02]} 25. Nh4 {[%clk 0:02:05]}  Kf7 {[%clk 0:01:57]} 26. Bb4 {[%clk 0:01:59]}  Bxb4 {[%clk 0:01:55]} 27. Rxb4 {[%clk 0:02:00]}  g5 {[%clk 0:01:55]} 28. Nf3 {[%clk 0:02:00]}  Ke7 {[%clk 0:01:50]} 29. Rc4 {[%clk 0:01:58]}  Rd8 {[%clk 0:01:37]} 30. Rc7+ {[%clk 0:01:55]}  Rd7 {[%clk 0:01:37]} 31. Rdxd7+ {[%clk 0:01:51]}  Bxd7 {[%clk 0:01:36]} 32. Bxa6 {[%clk 0:01:52]}  Kd8 {[%clk 0:01:37]} 33. Ra7 {[%clk 0:01:51]}  Bxa4 {[%clk 0:01:35]} 34. Bc4 {[%clk 0:01:48]}  Bd7 {[%clk 0:01:34]} 35. Ba6 {[%clk 0:01:35]}  b5 {[%clk 0:01:33]} 36. Rb7 {[%clk 0:01:32]}  Rxb7 {[%clk 0:01:33]} 37. Bxb7 {[%clk 0:01:33]}  Kc7 {[%clk 0:01:33]} 38. Ba6 {[%clk 0:01:28]}  Kb6 {[%clk 0:01:32]} 39. Bxb5 {[%clk 0:01:27]}  Kxb5 {[%clk 0:01:32]} 40. Nd2 {[%clk 0:01:24]}  Kb4 {[%clk 0:01:32]} 41. Kf3 {[%clk 0:01:25]}  Kc3 {[%clk 0:01:31]} 42. Ke3 {[%clk 0:01:26]}  Bc6 {[%clk 0:01:30]} 43. Nf1 {[%clk 0:01:22]}  Bb5 {[%clk 0:01:30]} 44. Ng3 {[%clk 0:01:22]}  Be8 {[%clk 0:01:27]} 45. Nf1 {[%clk 0:01:14]}  Kc2 {[%clk 0:01:24]} 46. Nd2 {[%clk 0:01:08]}  Kd1 {[%clk 0:01:22]} 47. Nf3 {[%clk 0:01:08]}  Bb5 {[%clk 0:01:18]} 48. Kf2 {[%clk 0:01:09]}  Bd3 {[%clk 0:01:13]} 49. Ke3 {[%clk 0:01:09]}  Bf1 {[%clk 0:01:12]} 50. Kf2 {[%clk 0:01:08]}  Bb5 {[%clk 0:01:08]} 51. Ke3 {[%clk 0:01:09]}  Kc2 {[%clk 0:01:05]} 52. Ne1+ {[%clk 0:01:07]}  Kc3 {[%clk 0:01:05]} 53. Nf3 {[%clk 0:01:07]}  Bd3 {[%clk 0:01:02]} 54. Ne1 {[%clk 0:01:05]}  Bf1 {[%clk 0:00:58]} 55. Kf2 {[%clk 0:01:05]}  Ba6 {[%clk 0:00:58]} 56. Ke3 {[%clk 0:01:05]}  Kc4 {[%clk 0:00:54]} 57. Nf3 {[%clk 0:01:02]}  Kc5 {[%clk 0:00:54]} 58. Nd2 {[%clk 0:00:59]}  Kd6 {[%clk 0:00:53]} 59. Nf3 {[%clk 0:00:56]}  Ke7 {[%clk 0:00:53]} 60. Nd2 {[%clk 0:00:54]}  f5 {[%clk 0:00:52]} 61. Nf3 {[%clk 0:00:47]}  Kf6 {[%clk 0:00:52]} 62. Nd2 {[%clk 0:00:47]}  Bb7 {[%clk 0:00:51]} 63. g3 {[%clk 0:00:41]}  f4+ {[%clk 0:00:41]} 64. gxf4 {[%clk 0:00:42]}  exf4+ {[%clk 0:00:41]} 65. Kf2 {[%clk 0:00:43]}  g4 {[%clk 0:00:38]} 66. hxg4 {[%clk 0:00:43]}  hxg4 {[%clk 0:00:38]} 67. Ke2 {[%clk 0:00:43]}  Ba6+ {[%clk 0:00:36]} 68. Kf2 {[%clk 0:00:43]}  Ke5 {[%clk 0:00:35]} 69. Kg2 {[%clk 0:00:42]}  Bd3 {[%clk 0:00:35]} 70. Kf2 {[%clk 0:00:42]}  Bxe4 {[%clk 0:00:35]} 71. Nc4+ {[%clk 0:00:43]}  Kd4 {[%clk 0:00:34]} 72. Na5 {[%clk 0:00:44]}  Bd5 {[%clk 0:00:31]} 73. Nb3+ {[%clk 0:00:43]}  Bxb3 {[%clk 0:00:31]} 0-1


[Site "https://www.chess.com"]

[Event "Titled Tuesday Blitz July 18 Early 2023"]
[White "Rodriguez Fontecha, Marcos"]
[Black "kiwibobo"]
[WhiteFideId "2256576"]
[WhiteElo "2465"]
[BlackElo "2329"]
[Result "1-0"]
[Round "6"]
[TimeControl "180+2"]
[Date "2023.07.18"]
[WhiteClock "0:00:46"]
[BlackClock "0:00:08"]
[Board "139"]

1. e4 {[%clk 0:02:51]}  e5 {[%clk 0:02:59]} 2. Nf3 {[%clk 0:02:50]}  Nc6 {[%clk 0:03:00]} 3. d4 {[%clk 0:02:51]}  exd4 {[%clk 0:03:00]} 4. Bc4 {[%clk 0:02:51]}  Nf6 {[%clk 0:03:01]} 5. O-O {[%clk 0:02:50]}  Nxe4 {[%clk 0:03:01]} 6. Re1 {[%clk 0:02:50]}  d5 {[%clk 0:03:01]} 7. Bxd5 {[%clk 0:02:50]}  Qxd5 {[%clk 0:03:02]} 8. Nc3 {[%clk 0:02:50]}  Qa5 {[%clk 0:03:03]} 9. Nxe4 {[%clk 0:02:50]}  Be6 {[%clk 0:03:03]} 10. Bg5 {[%clk 0:02:41]}  h6 {[%clk 0:02:52]} 11. Bh4 {[%clk 0:02:38]}  Bc5 {[%clk 0:02:50]} 12. a3 {[%clk 0:02:30]}  Bb6 {[%clk 0:02:44]} 13. b4 {[%clk 0:02:19]}  Qh5 {[%clk 0:02:42]} 14. Bf6 {[%clk 0:02:13]}  O-O {[%clk 0:02:35]} 15. Qd3 {[%clk 0:01:51]}  Bf5 {[%clk 0:02:25]} 16. b5 {[%clk 0:01:39]}  Bxe4 {[%clk 0:01:51]} 17. Rxe4 {[%clk 0:01:37]}  gxf6 {[%clk 0:01:44]} 18. bxc6 {[%clk 0:01:36]}  bxc6 {[%clk 0:01:39]} 19. h3 {[%clk 0:01:29]}  Rad8 {[%clk 0:01:27]} 20. Rh4 {[%clk 0:01:23]}  Qg6 {[%clk 0:00:35]} 21. Rg4 {[%clk 0:01:22]}  Kh7 {[%clk 0:00:36]} 22. Rxg6 {[%clk 0:01:19]}  fxg6 {[%clk 0:00:36]} 23. Re1 {[%clk 0:01:17]}  Rfe8 {[%clk 0:00:34]} 24. Rxe8 {[%clk 0:01:14]}  Rxe8 {[%clk 0:00:35]} 25. Qc4 {[%clk 0:01:14]}  Kg7 {[%clk 0:00:32]} 26. Qxc6 {[%clk 0:01:10]}  Kf7 {[%clk 0:00:25]} 27. h4 {[%clk 0:00:59]}  h5 {[%clk 0:00:22]} 28. Qd5+ {[%clk 0:00:56]}  Re6 {[%clk 0:00:14]} 29. Nxd4 {[%clk 0:00:52]}  Bxd4 {[%clk 0:00:14]} 30. Qxd4 {[%clk 0:00:50]}  a6 {[%clk 0:00:14]} 31. Qd7+ {[%clk 0:00:47]}  Re7 {[%clk 0:00:14]} 32. Qc6 {[%clk 0:00:48]}  a5 {[%clk 0:00:11]} 33. Qd5+ {[%clk 0:00:47]}  Re6 {[%clk 0:00:12]} 34. Qxa5 {[%clk 0:00:48]}  Rb6 {[%clk 0:00:12]} 35. Qc5 {[%clk 0:00:46]}  Rb7 {[%clk 0:00:11]} 36. a4 {[%clk 0:00:47]}  Ke6 {[%clk 0:00:08]} 37. Qc6+ {[%clk 0:00:46]} 1-0


[Site "https://www.chess.com"]

[Event "Titled Tuesday Blitz July 18 Early 2023"]
[White "WindWhistler11"]
[Black "Acikel, Mert"]
[BlackFideId "12956465"]
[WhiteElo "2460"]
[BlackElo "2320"]
[Result "1-0"]
[Round "6"]
[TimeControl "180+2"]
[Date "2023.07.18"]
[WhiteClock "0:00:17"]
[BlackClock "0:00:16"]
[Board "140"]

1. Nf3 {[%clk 0:02:55]}  d5 {[%clk 0:02:59]} 2. g3 {[%clk 0:02:56]}  Nf6 {[%clk 0:03:00]} 3. c4 {[%clk 0:02:57]}  e6 {[%clk 0:03:00]} 4. Bg2 {[%clk 0:02:56]}  Be7 {[%clk 0:03:01]} 5. O-O {[%clk 0:02:57]}  O-O {[%clk 0:03:01]} 6. b3 {[%clk 0:02:58]}  d4 {[%clk 0:03:01]} 7. e3 {[%clk 0:02:58]}  c5 {[%clk 0:02:57]} 8. exd4 {[%clk 0:02:58]}  cxd4 {[%clk 0:02:57]} 9. a3 {[%clk 0:02:58]}  a5 {[%clk 0:02:57]} 10. d3 {[%clk 0:02:58]}  Nc6 {[%clk 0:02:57]} 11. Re1 {[%clk 0:02:58]}  Bc5 {[%clk 0:02:50]} 12. Ne5 {[%clk 0:02:51]}  Nxe5 {[%clk 0:02:47]} 13. Rxe5 {[%clk 0:02:52]}  Bd6 {[%clk 0:02:46]} 14. Re1 {[%clk 0:02:44]}  e5 {[%clk 0:02:45]} 15. Nd2 {[%clk 0:02:31]}  Bg4 {[%clk 0:02:32]} 16. Qc2 {[%clk 0:02:30]}  Qc7 {[%clk 0:02:26]} 17. Rb1 {[%clk 0:02:21]}  Rfe8 {[%clk 0:02:00]} 18. b4 {[%clk 0:02:19]}  axb4 {[%clk 0:01:57]} 19. axb4 {[%clk 0:02:19]}  h6 {[%clk 0:01:51]} 20. c5 {[%clk 0:02:13]}  Bf8 {[%clk 0:01:49]} 21. Nc4 {[%clk 0:02:01]}  Bf5 {[%clk 0:01:43]} 22. f4 {[%clk 0:01:28]}  Rad8 {[%clk 0:01:23]} 23. fxe5 {[%clk 0:01:07]}  Nd5 {[%clk 0:01:19]} 24. Bf4 {[%clk 0:00:53]}  Nxf4 {[%clk 0:01:07]} 25. gxf4 {[%clk 0:00:52]}  Qc8 {[%clk 0:00:57]} 26. Qd2 {[%clk 0:00:47]}  Qe6 {[%clk 0:00:53]} 27. Nd6 {[%clk 0:00:45]}  Bxd6 {[%clk 0:00:54]} 28. cxd6 {[%clk 0:00:45]}  Qg6 {[%clk 0:00:53]} 29. Rb3 {[%clk 0:00:39]}  Qe6 {[%clk 0:00:37]} 30. Ra3 {[%clk 0:00:37]}  Rxd6 {[%clk 0:00:36]} 31. exd6 {[%clk 0:00:24]}  Qxe1+ {[%clk 0:00:35]} 32. Qxe1 {[%clk 0:00:24]}  Rxe1+ {[%clk 0:00:36]} 33. Kf2 {[%clk 0:00:25]}  Rb1 {[%clk 0:00:33]} 34. Be4 {[%clk 0:00:20]}  Rb2+ {[%clk 0:00:17]} 35. Kg3 {[%clk 0:00:18]}  Be6 {[%clk 0:00:16]} 36. Ra8+ {[%clk 0:00:17]} 1-0


[Site "https://www.chess.com"]

[Event "Titled Tuesday Blitz July 18 Early 2023"]
[White "Wang, Alexander J"]
[Black "Nunez V, Gustavo Eduardo"]
[WhiteFideId "30955270"]
[BlackFideId "4403690"]
[WhiteElo "2302"]
[BlackElo "2452"]
[Result "0-1"]
[Round "6"]
[TimeControl "180+2"]
[Date "2023.07.18"]
[WhiteClock "0:00:26"]
[BlackClock "0:00:33"]
[Board "142"]

1. e4 {[%clk 0:03:00]}  c5 {[%clk 0:03:00]} 2. Nf3 {[%clk 0:02:59]}  Nc6 {[%clk 0:03:00]} 3. d4 {[%clk 0:02:58]}  cxd4 {[%clk 0:03:01]} 4. Nxd4 {[%clk 0:02:59]}  e5 {[%clk 0:03:01]} 5. Ne2 {[%clk 0:02:58]}  Nf6 {[%clk 0:03:00]} 6. Nbc3 {[%clk 0:02:57]}  Bc5 {[%clk 0:02:58]} 7. Na4 {[%clk 0:02:51]}  Qa5+ {[%clk 0:02:45]} 8. c3 {[%clk 0:02:43]}  Nxe4 {[%clk 0:02:44]} 9. Nxc5 {[%clk 0:02:41]}  Qxc5 {[%clk 0:02:45]} 10. Be3 {[%clk 0:02:40]}  Qd6 {[%clk 0:02:36]} 11. Qc2 {[%clk 0:02:33]}  f5 {[%clk 0:02:32]} 12. f3 {[%clk 0:02:29]}  Nf6 {[%clk 0:02:29]} 13. Qxf5 {[%clk 0:02:16]}  O-O {[%clk 0:02:28]} 14. Qc2 {[%clk 0:02:14]}  Qe6 {[%clk 0:02:24]} 15. Ng3 {[%clk 0:02:13]}  d5 {[%clk 0:02:24]} 16. Be2 {[%clk 0:02:07]}  h5 {[%clk 0:02:17]} 17. h4 {[%clk 0:01:40]}  d4 {[%clk 0:02:03]} 18. Bg5 {[%clk 0:01:37]}  dxc3 {[%clk 0:01:44]} 19. Qxc3 {[%clk 0:01:34]}  Nd5 {[%clk 0:01:39]} 20. Qc1 {[%clk 0:01:22]}  g6 {[%clk 0:01:35]} 21. O-O {[%clk 0:01:19]}  Nd4 {[%clk 0:01:31]} 22. Bc4 {[%clk 0:01:18]}  Bd7 {[%clk 0:01:27]} 23. Ne4 {[%clk 0:01:16]}  Bc6 {[%clk 0:01:22]} 24. Bh6 {[%clk 0:01:05]}  Rf5 {[%clk 0:01:15]} 25. Bg5 {[%clk 0:01:01]}  Raf8 {[%clk 0:01:11]} 26. Kh2 {[%clk 0:00:58]}  b5 {[%clk 0:00:53]} 27. Bxd5 {[%clk 0:00:51]}  Bxd5 {[%clk 0:00:53]} 28. Nf6+ {[%clk 0:00:46]}  R8xf6 {[%clk 0:00:51]} 29. Bxf6 {[%clk 0:00:46]}  Qxf6 {[%clk 0:00:50]} 30. Qc8+ {[%clk 0:00:45]}  Qf8 {[%clk 0:00:47]} 31. Qxf8+ {[%clk 0:00:42]}  Kxf8 {[%clk 0:00:40]} 32. b3 {[%clk 0:00:38]}  Ke7 {[%clk 0:00:39]} 33. Rae1 {[%clk 0:00:36]}  Kd6 {[%clk 0:00:39]} 34. Rd1 {[%clk 0:00:34]}  Rf4 {[%clk 0:00:38]} 35. Rfe1 {[%clk 0:00:26]}  Rxh4+ {[%clk 0:00:37]} 36. Kg3 {[%clk 0:00:25]}  Rf4 {[%clk 0:00:38]} 37. Re3 {[%clk 0:00:25]}  Nf5+ {[%clk 0:00:38]} 38. Kf2 {[%clk 0:00:25]}  Nxe3 {[%clk 0:00:38]} 39. Kxe3 {[%clk 0:00:26]}  g5 {[%clk 0:00:33]} 40. g3 {[%clk 0:00:26]}  Rxf3+ {[%clk 0:00:33]} 0-1


[Site "https://www.chess.com"]

[Event "Titled Tuesday Blitz July 18 Early 2023"]
[White "Zaksaite, Salomeja"]
[Black "JonSnowNW1"]
[WhiteFideId "12801496"]
[WhiteElo "2297"]
[BlackElo "2450"]
[Result "1-0"]
[Round "6"]
[TimeControl "180+2"]
[Date "2023.07.18"]
[WhiteClock "0:00:15"]
[BlackClock "0:00:01"]
[Board "144"]

1. e4 {[%clk 0:03:00]}  c5 {[%clk 0:02:59]} 2. Nf3 {[%clk 0:02:58]}  d6 {[%clk 0:02:59]} 3. d4 {[%clk 0:02:57]}  cxd4 {[%clk 0:02:59]} 4. Nxd4 {[%clk 0:02:58]}  Nf6 {[%clk 0:02:59]} 5. Nc3 {[%clk 0:02:57]}  a6 {[%clk 0:03:00]} 6. Bc4 {[%clk 0:02:49]}  e6 {[%clk 0:02:58]} 7. Bb3 {[%clk 0:02:47]}  Be7 {[%clk 0:02:56]} 8. Bg5 {[%clk 0:02:46]}  O-O {[%clk 0:02:56]} 9. Qf3 {[%clk 0:02:46]}  Nc6 {[%clk 0:02:52]} 10. O-O-O {[%clk 0:02:43]}  Ne5 {[%clk 0:02:47]} 11. Qg3 {[%clk 0:02:17]}  Qc7 {[%clk 0:02:36]} 12. f4 {[%clk 0:02:13]}  Ng6 {[%clk 0:02:33]} 13. f5 {[%clk 0:02:04]}  Nh5 {[%clk 0:01:39]} 14. Qg4 {[%clk 0:01:52]}  Bxg5+ {[%clk 0:01:13]} 15. Qxg5 {[%clk 0:01:50]}  Ngf4 {[%clk 0:01:13]} 16. g3 {[%clk 0:01:21]}  h6 {[%clk 0:00:20]} 17. Qg4 {[%clk 0:01:20]}  e5 {[%clk 0:00:20]} 18. gxf4 {[%clk 0:01:03]}  Nf6 {[%clk 0:00:20]} 19. Qg3 {[%clk 0:00:45]}  exd4 {[%clk 0:00:19]} 20. Rhg1 {[%clk 0:00:40]}  Nh5 {[%clk 0:00:19]} 21. Qg4 {[%clk 0:00:39]}  dxc3 {[%clk 0:00:19]} 22. Qxh5 {[%clk 0:00:37]}  cxb2+ {[%clk 0:00:19]} 23. Kb1 {[%clk 0:00:38]}  Qc3 {[%clk 0:00:15]} 24. e5 {[%clk 0:00:35]}  Kh7 {[%clk 0:00:12]} 25. Bxf7 {[%clk 0:00:18]}  Bd7 {[%clk 0:00:01]} 26. Qg6+ {[%clk 0:00:15]} 1-0


[Site "https://www.chess.com"]

[Event "Titled Tuesday Blitz July 18 Early 2023"]
[White "Barwinska, Ewa"]
[Black "Namitbir Singh Walia"]
[WhiteFideId "21833761"]
[BlackFideId "35071068"]
[WhiteElo "2293"]
[BlackElo "2446"]
[Result "0-1"]
[Round "6"]
[TimeControl "180+2"]
[Date "2023.07.18"]
[WhiteClock "0:00:00"]
[BlackClock "0:00:10"]
[Board "145"]

1. e4 {[%clk 0:03:00]}  e5 {[%clk 0:02:56]} 2. Nf3 {[%clk 0:02:56]}  Nc6 {[%clk 0:02:56]} 3. Bb5 {[%clk 0:02:55]}  a6 {[%clk 0:02:56]} 4. Bxc6 {[%clk 0:02:52]}  dxc6 {[%clk 0:02:57]} 5. c3 {[%clk 0:02:40]}  Qd3 {[%clk 0:02:53]} 6. Qe2 {[%clk 0:02:38]}  Qxe2+ {[%clk 0:02:52]} 7. Kxe2 {[%clk 0:02:39]}  Nf6 {[%clk 0:02:30]} 8. d3 {[%clk 0:02:25]}  Bd6 {[%clk 0:02:29]} 9. Bg5 {[%clk 0:02:23]}  h6 {[%clk 0:02:16]} 10. Bh4 {[%clk 0:02:19]}  Nh5 {[%clk 0:02:09]} 11. Bg3 {[%clk 0:01:40]}  Nxg3+ {[%clk 0:02:08]} 12. hxg3 {[%clk 0:01:41]}  Bg4 {[%clk 0:02:08]} 13. Nd2 {[%clk 0:01:34]}  b5 {[%clk 0:01:57]} 14. d4 {[%clk 0:01:28]}  exd4 {[%clk 0:01:47]} 15. cxd4 {[%clk 0:01:29]}  O-O-O {[%clk 0:01:47]} 16. Rac1 {[%clk 0:01:23]}  Kb7 {[%clk 0:01:46]} 17. Nb3 {[%clk 0:01:22]}  Rhe8 {[%clk 0:01:45]} 18. e5 {[%clk 0:01:00]}  Bb4 {[%clk 0:01:16]} 19. a3 {[%clk 0:00:54]}  Be6 {[%clk 0:01:16]} 20. Nc5+ {[%clk 0:00:35]}  Bxc5 {[%clk 0:01:15]} 21. Rxc5 {[%clk 0:00:36]}  Bd5 {[%clk 0:01:10]} 22. Ke3 {[%clk 0:00:21]}  a5 {[%clk 0:01:02]} 23. Rhc1 {[%clk 0:00:17]}  a4 {[%clk 0:01:00]} 24. R5c3 {[%clk 0:00:14]}  f6 {[%clk 0:01:00]} 25. Rc5 {[%clk 0:00:09]}  Kb6 {[%clk 0:00:46]} 26. R1c3 {[%clk 0:00:05]}  fxe5 {[%clk 0:00:42]} 27. Nxe5 {[%clk 0:00:05]}  Bxg2 {[%clk 0:00:41]} 28. f3 {[%clk 0:00:04]}  Rd6 {[%clk 0:00:39]} 29. Rxc6+ {[%clk 0:00:05]}  Rxc6 {[%clk 0:00:38]} 30. Rxc6+ {[%clk 0:00:05]}  Kb7 {[%clk 0:00:38]} 31. Rc5 {[%clk 0:00:06]}  Bf1 {[%clk 0:00:38]} 32. Kf2 {[%clk 0:00:06]}  Bh3 {[%clk 0:00:36]} 33. Rxb5+ {[%clk 0:00:05]}  Kc8 {[%clk 0:00:36]} 34. Rc5 {[%clk 0:00:06]}  Be6 {[%clk 0:00:35]} 35. Nc4 {[%clk 0:00:06]}  Kb7 {[%clk 0:00:33]} 36. Na5+ {[%clk 0:00:05]}  Kb6 {[%clk 0:00:33]} 37. Nc4+ {[%clk 0:00:06]}  Kb7 {[%clk 0:00:32]} 38. Ne5 {[%clk 0:00:05]}  Bb3 {[%clk 0:00:31]} 39. Rb5+ {[%clk 0:00:06]}  Kc8 {[%clk 0:00:30]} 40. Rc5 {[%clk 0:00:06]}  Rd8 {[%clk 0:00:29]} 41. Ke3 {[%clk 0:00:06]}  Rd6 {[%clk 0:00:28]} 42. f4 {[%clk 0:00:07]}  Rf6 {[%clk 0:00:24]} 43. g4 {[%clk 0:00:07]}  Be6 {[%clk 0:00:20]} 44. g5 {[%clk 0:00:07]}  hxg5 {[%clk 0:00:20]} 45. fxg5 {[%clk 0:00:08]}  Rf8 {[%clk 0:00:20]} 46. g6 {[%clk 0:00:08]}  Rf6 {[%clk 0:00:20]} 47. Rc6 {[%clk 0:00:07]}  Kd8 {[%clk 0:00:18]} 48. Ra6 {[%clk 0:00:07]}  Ke7 {[%clk 0:00:17]} 49. Rxa4 {[%clk 0:00:07]}  Bf5 {[%clk 0:00:18]} 50. Rc4 {[%clk 0:00:08]}  Kd8 {[%clk 0:00:17]} 51. Nf7+ {[%clk 0:00:07]}  Kc8 {[%clk 0:00:15]} 52. Ne5 {[%clk 0:00:06]}  Bxg6 {[%clk 0:00:16]} 53. Nxg6 {[%clk 0:00:06]}  Rxg6 {[%clk 0:00:16]} 54. b4 {[%clk 0:00:06]}  Rg3+ {[%clk 0:00:15]} 55. Ke4 {[%clk 0:00:05]}  Rxa3 {[%clk 0:00:16]} 56. b5 {[%clk 0:00:05]}  Kb7 {[%clk 0:00:15]} 57. Rc5 {[%clk 0:00:05]}  Rg3 {[%clk 0:00:15]} 58. Kf5 {[%clk 0:00:05]}  Rg1 {[%clk 0:00:14]} 59. d5 {[%clk 0:00:04]}  g5 {[%clk 0:00:12]} 60. d6 {[%clk 0:00:02]}  cxd6 {[%clk 0:00:11]} 61. Rd5 {[%clk 0:00:02]}  g4 {[%clk 0:00:09]} 62. Rxd6 {[%clk 0:00:02]}  g3 {[%clk 0:00:10]} 63. Rg6 {[%clk 0:00:00]}  g2 {[%clk 0:00:10]} 0-1


[Site "https://www.chess.com"]

[Event "Titled Tuesday Blitz July 18 Early 2023"]
[White "Tanmay Jain"]
[Black "Pershina, Elena"]
[WhiteFideId "45015481"]
[BlackFideId "24147516"]
[WhiteElo "2445"]
[BlackElo "2290"]
[Result "1-0"]
[Round "6"]
[TimeControl "180+2"]
[Date "2023.07.18"]
[WhiteClock "0:00:39"]
[BlackClock "0:00:37"]
[Board "146"]

1. Nf3 {[%clk 0:02:56]}  c5 {[%clk 0:02:59]} 2. g3 {[%clk 0:02:55]}  g6 {[%clk 0:02:57]} 3. Bg2 {[%clk 0:02:55]}  Bg7 {[%clk 0:02:57]} 4. O-O {[%clk 0:02:56]}  Nc6 {[%clk 0:02:57]} 5. e4 {[%clk 0:02:54]}  d6 {[%clk 0:02:54]} 6. c3 {[%clk 0:02:52]}  e5 {[%clk 0:02:50]} 7. Na3 {[%clk 0:02:47]}  Nge7 {[%clk 0:02:47]} 8. h3 {[%clk 0:02:47]}  O-O {[%clk 0:02:46]} 9. d4 {[%clk 0:02:44]}  exd4 {[%clk 0:02:45]} 10. cxd4 {[%clk 0:02:45]}  Nxd4 {[%clk 0:02:45]} 11. Nc2 {[%clk 0:02:35]}  Nec6 {[%clk 0:02:38]} 12. Be3 {[%clk 0:02:34]}  Nxf3+ {[%clk 0:02:35]} 13. Qxf3 {[%clk 0:02:34]}  Bxb2 {[%clk 0:02:33]} 14. Rab1 {[%clk 0:02:34]}  Bg7 {[%clk 0:02:32]} 15. Rfd1 {[%clk 0:02:32]}  Ne5 {[%clk 0:02:23]} 16. Qe2 {[%clk 0:02:31]}  Qe7 {[%clk 0:02:21]} 17. Bf4 {[%clk 0:02:23]}  Be6 {[%clk 0:02:19]} 18. Ne3 {[%clk 0:02:23]}  Rfe8 {[%clk 0:02:10]} 19. Nd5 {[%clk 0:02:20]}  Bxd5 {[%clk 0:02:08]} 20. Rxd5 {[%clk 0:02:21]}  Rad8 {[%clk 0:02:03]} 21. Qb5 {[%clk 0:02:16]}  b6 {[%clk 0:02:01]} 22. Rbd1 {[%clk 0:02:14]}  g5 {[%clk 0:01:51]} 23. Be3 {[%clk 0:02:07]}  Qf6 {[%clk 0:01:43]} 24. Qe2 {[%clk 0:02:02]}  Nc6 {[%clk 0:01:36]} 25. Bxg5 {[%clk 0:01:59]}  Qg6 {[%clk 0:01:29]} 26. Bxd8 {[%clk 0:01:55]}  Rxd8 {[%clk 0:01:28]} 27. Qb5 {[%clk 0:01:17]}  Nd4 {[%clk 0:01:26]} 28. Qa6 {[%clk 0:01:17]}  Be5 {[%clk 0:01:14]} 29. Qxa7 {[%clk 0:01:04]}  Ne2+ {[%clk 0:01:06]} 30. Kf1 {[%clk 0:01:03]}  Nc3 {[%clk 0:01:00]} 31. Rxe5 {[%clk 0:00:53]}  Nxd1 {[%clk 0:00:59]} 32. Qe7 {[%clk 0:00:53]}  Ra8 {[%clk 0:00:51]} 33. Rg5 {[%clk 0:00:53]}  Rxa2 {[%clk 0:00:43]} 34. Rxg6+ {[%clk 0:00:53]}  hxg6 {[%clk 0:00:44]} 35. Qxd6 {[%clk 0:00:44]}  Nc3 {[%clk 0:00:37]} 36. Bf3 {[%clk 0:00:39]} 1-0


[Site "https://www.chess.com"]

[Event "Titled Tuesday Blitz July 18 Early 2023"]
[White "Matyukov, Petr"]
[Black "Peiris, T G M"]
[WhiteFideId "4103688"]
[BlackFideId "9901310"]
[WhiteElo "2443"]
[BlackElo "2273"]
[Result "0-1"]
[Round "6"]
[TimeControl "180+2"]
[Date "2023.07.18"]
[WhiteClock "0:00:11"]
[BlackClock "0:01:46"]
[Board "147"]

1. d4 {[%clk 0:03:00]}  e6 {[%clk 0:02:57]} 2. c4 {[%clk 0:03:00]}  f5 {[%clk 0:02:56]} 3. Nf3 {[%clk 0:02:57]}  Nf6 {[%clk 0:02:56]} 4. g3 {[%clk 0:02:57]}  Be7 {[%clk 0:02:57]} 5. Bg2 {[%clk 0:02:57]}  O-O {[%clk 0:02:57]} 6. O-O {[%clk 0:02:58]}  d6 {[%clk 0:02:58]} 7. Nc3 {[%clk 0:02:58]}  a5 {[%clk 0:02:58]} 8. Qc2 {[%clk 0:02:56]}  Nc6 {[%clk 0:02:58]} 9. a3 {[%clk 0:02:56]}  e5 {[%clk 0:02:58]} 10. dxe5 {[%clk 0:02:53]}  dxe5 {[%clk 0:02:58]} 11. Rd1 {[%clk 0:02:53]}  Qe8 {[%clk 0:02:59]} 12. Nd5 {[%clk 0:02:51]}  Bd8 {[%clk 0:02:59]} 13. b3 {[%clk 0:02:39]}  e4 {[%clk 0:02:57]} 14. Nd4 {[%clk 0:02:38]}  Nxd4 {[%clk 0:02:57]} 15. Rxd4 {[%clk 0:02:39]}  c6 {[%clk 0:02:57]} 16. Nc3 {[%clk 0:02:11]}  Ng4 {[%clk 0:02:49]} 17. h3 {[%clk 0:02:06]}  Bb6 {[%clk 0:02:47]} 18. Rd1 {[%clk 0:01:17]}  Bxf2+ {[%clk 0:02:26]} 19. Kf1 {[%clk 0:01:16]}  Bxg3 {[%clk 0:02:25]} 20. hxg4 {[%clk 0:00:32]}  fxg4+ {[%clk 0:02:23]} 21. Kg1 {[%clk 0:00:32]}  Bf2+ {[%clk 0:02:20]} 22. Kf1 {[%clk 0:00:24]}  Bg3+ {[%clk 0:01:58]} 23. Kg1 {[%clk 0:00:22]}  Qh5 {[%clk 0:01:58]} 24. Bh3 {[%clk 0:00:13]}  Qxh3 {[%clk 0:01:58]} 25. e3 {[%clk 0:00:13]}  Bf2+ {[%clk 0:01:47]} 26. Qxf2 {[%clk 0:00:13]}  Rxf2 {[%clk 0:01:47]} 27. Kxf2 {[%clk 0:00:14]}  g3+ {[%clk 0:01:47]} 28. Ke2 {[%clk 0:00:14]}  Qg2+ {[%clk 0:01:45]} 29. Ke1 {[%clk 0:00:11]}  Qf2# {[%clk 0:01:46]} 0-1


[Site "https://www.chess.com"]